bitfinex/quotes_SOLUSD_20240814
["timestamp","ask_amount","ask_price","bid_price","bid_amount"]
[1723648275473,298.24,146.47,146.34,6.3922]
[1723648275679,298.24,146.47,146.35,45.0]
[1723648276555,258.9,146.47,146.35,45.0]
[1723648276747,278.9,146.47,146.36,16.0499]
[1723648276951,258.9,146.47,146.36,16.0499]
[1723648277156,258.9,146.47,146.37,45.0]
[1723648277559,258.9,146.47,146.38,6.522]
[1723648277760,39.34,146.49,146.39,45.0]
[1723648277976,381.7,146.5,146.39,45.0]
[1723648279464,20.0,146.49,146.39,45.0]
[1723648279980,381.7,146.5,146.4,16.1479]
[1723648280176,381.7,146.5,146.41,71.0595]
[1723648280682,381.7,146.5,146.41,51.0595]
[1723648281256,67.08,146.55,146.41,51.0595]
[1723648281477,20.0,146.54,146.41,51.0595]
[1723648281683,67.08,146.55,146.41,51.0595]
[1723648282168,20.0,146.53,146.41,51.0595]
[1723648282500,47.08,146.55,146.41,51.0595]
[1723648282704,67.08,146.55,146.41,51.0595]
[1723648283193,20.0,146.54,146.42,0.37647]
[1723648283689,20.0,146.57,146.42,77.44962621]
[1723648283891,47.08,146.58,146.44,21.4791]
[1723648284185,660.6,146.61,146.43,0.12549]
[1723648284186,258.9,146.61,146.46,21.4791]
[1723648284365,87.08,146.64,146.49,6.3642]
[1723648284570,20.0,146.62,146.5,45.0]
[1723648284959,87.08,146.64,146.5,45.0]
[1723648285256,47.08,146.64,146.51,16.2131]
[1723648285461,67.08,146.64,146.51,16.2131]
[1723648285661,20.0,146.63,146.52,45.0]
[1723648286903,47.08,146.67,146.53,6.5471]
[1723648287055,47.08,146.67,146.54,45.0]
[1723648287262,47.08,146.61,146.53,6.5471]
[1723648287465,20.0,146.6,146.53,6.5471]
[1723648287770,47.08,146.58,146.53,6.5471]
[1723648288109,47.08,146.61,146.53,6.5471]
[1723648288393,60.0,146.6,146.53,6.5471]
[1723648288593,47.08,146.58,146.53,6.5471]
[1723648289262,20.12549,146.57,146.53,6.5471]
[1723648289463,47.08,146.55,146.51,16.2131]
[1723648290699,20.0,146.57,146.51,16.2131]
[1723648290902,40.0,146.57,146.51,16.2131]
[1723648291389,20.0,146.57,146.51,16.2131]
[1723648292703,40.0,146.57,146.51,16.2131]
[1723648292861,40.0,146.57,146.49,6.607]
[1723648292862,67.08,146.55,146.49,6.607]
[1723648293066,47.08,146.52,146.47,16.2419]
[1723648293793,20.0,146.51,146.47,16.2419]
[1723648294513,47.08,146.52,146.45,6.4922]
[1723648294514,20.0,146.49,146.45,6.4922]
[1723648294795,67.08,146.52,146.45,6.4922]
[1723648295001,20.0,146.51,146.45,6.4922]
[1723648295877,40.0,146.51,146.45,6.4922]
[1723648296477,0.12549,146.5,146.45,6.4922]
[1723648296703,40.55,146.49,146.45,6.4922]
[1723648297007,20.0,146.49,146.45,6.4922]
[1723648297376,0.12549,146.5,146.45,6.4922]
[1723648298397,65.50196,146.5,146.45,6.4922]
[1723648298573,39.24,146.48,146.45,6.4922]
[1723648298774,39.24,146.48,146.43,15.4045]
[1723648298973,20.0,146.46,146.43,15.4045]
[1723648299204,20.0,146.46,146.41,6.1281]
[1723648299205,39.24,146.45,146.41,6.1281]
[1723648299714,20.0,146.44,146.41,6.1281]
[1723648299998,20.0,146.44,146.31,21.6695]
[1723648300206,39.24,146.45,146.32,30.0]
[1723648300408,60.0,146.44,146.32,30.0]
[1723648300699,40.0,146.44,146.31,21.6695]
[1723648300887,40.0,146.44,146.31,31.66265621]
[1723648301083,60.0,146.44,146.31,31.66265621]
[1723648301294,60.0,146.44,146.32,20.0]
[1723648301484,60.0,146.44,146.31,31.66265621]
[1723648301809,60.0,146.44,145.86,3.58057632]
[1723648301810,0.12549,146.06,145.86,3.58057632]
[1723648302008,68.4415,146.11,145.6,74.5045791]
[1723648302009,0.12549,145.73,145.6,74.5045791]
[1723648302183,0.12549,145.73,145.62,23.79995241]
[1723648302502,0.12549,145.63,145.6,74.5045791]
[1723648303081,0.12549,145.63,145.6,7.0507791]
[1723648303281,0.12549,145.63,145.56,16.5524]
[1723648303282,3.60647372,145.63,145.56,45.83925853]
[1723648303588,0.12549,145.63,145.56,1.59925853]
[1723648303790,3.48098372,145.62,145.56,1.59925853]
[1723648303989,0.25098,145.61,145.56,1.59925853]
[1723648304192,20.0,145.6,145.52,23.3409]
[1723648304418,0.25098,145.61,145.52,23.3409]
[1723648304724,3.48098372,145.6,145.54,31.71261414]
[1723648305031,0.12549,145.62,145.54,31.71261414]
[1723648308406,0.12549,145.62,145.55,45.0]
[1723648308720,0.12549,145.62,145.54,31.71261414]
[1723648309827,0.12549,145.62,145.55,45.0]
[1723648312128,20.0,145.63,145.55,45.0]
[1723648312340,0.12549,145.62,145.55,45.0]
[1723648314705,0.12549,145.62,145.54,31.71261414]
[1723648319936,20.0,145.63,145.57,47.64]
[1723648320140,0.12549,145.62,145.54,31.71261414]
[1723648320543,0.12549,145.62,145.53,47.64]
[1723648320841,20.0,145.66,145.53,47.64]
[1723648321051,20.0,145.59,145.52,6.1616]
[1723648321231,20.0,145.61,145.52,6.1616]
[1723648321426,0.12549,145.63,145.54,47.64]
[1723648321623,20.0,145.62,145.54,47.64]
[1723648321918,20.0,145.62,145.52,6.1616]
[1723648322115,0.37647,145.63,145.52,6.1616]
[1723648322317,0.12549,145.63,145.52,6.1616]
[1723648322547,0.50196,145.63,145.52,6.1616]
[1723648323251,0.25098,145.63,145.53,45.0]
[1723648323460,0.12549,145.63,145.53,45.0]
[1723648324529,0.12549,145.63,145.54,47.64]
[1723648326628,20.0,145.64,145.53,45.0]
[1723648326629,20.0,145.73,145.6,95.28]
[1723648326834,3.759255,145.75,145.6,95.28]
[1723648326835,23.759255,145.75,145.66,47.64]
[1723648327037,3.759255,145.75,145.66,47.64]
[1723648327233,3.759255,145.75,145.6,47.64]
[1723648327234,20.0,145.78,145.69,54.1259]
[1723648327433,20.0,145.8,145.69,54.1259]
[1723648327727,20.0,145.77,145.69,6.4859]
[1723648328347,20.0,145.79,145.69,6.4859]
[1723648328533,20.0,145.81,145.7,45.0]
[1723648328736,20.0,145.81,145.71,47.64]
[1723648328942,20.0,145.84,145.74,47.64]
[1723648329359,20.0,145.84,145.75,45.0]
[1723648329523,20.0,145.84,145.74,47.64]
[1723648330140,20.0,145.84,145.75,45.0]
[1723648330444,20.0,145.86,145.75,45.0]
[1723648331157,20.0,145.84,145.71,47.64]
[1723648331331,40.0,145.84,145.72,65.0]
[1723648332058,20.0,145.82,145.72,65.0]
[1723648332260,0.25098,145.83,145.72,65.0]
[1723648332443,20.0,145.86,145.74,47.64]
[1723648332646,40.0,145.86,145.75,45.0]
[1723648332957,57.11751497,145.9,145.75,45.0]
[1723648332958,20.0,145.88,145.75,45.0]
[1723648333133,20.0,145.89,145.77,47.64]
[1723648333465,20.0,145.9,145.78,45.0]
[1723648334277,20.0,145.92,145.8,47.64]
[1723648334441,20.0,145.92,145.81,45.0]
[1723648335446,20.0,145.94,145.81,45.0]
[1723648336850,20.0,145.94,145.82,20.0]
[1723648337055,20.0,145.94,145.83,45.0]
[1723648337237,20.0,145.94,145.8,47.64]
[1723648337238,20.0,145.92,145.8,47.64]
[1723648337445,20.0,145.92,145.77,63.9651]
[1723648337642,20.0,145.92,145.78,65.12549]
[1723648337854,0.12549,145.91,145.78,65.12549]
[1723648338759,0.12549,145.91,145.8,47.64]
[1723648338970,0.12549,145.93,145.81,45.0]
[1723648339699,20.0,145.94,145.82,20.0]
[1723648339971,40.0,145.98,145.84,6.4171]
[1723648340276,40.0,145.98,145.86,47.64]
[1723648340483,417.90306329,146.14,145.86,47.64]
[1723648340484,40.0,146.0,145.86,47.64]
[1723648340782,40.0,146.0,145.87,65.0]
[1723648340954,20.0,145.95,145.84,6.4171]
[1723648341158,20.0,145.95,145.85,45.0]
[1723648341874,0.12549,145.94,145.85,45.0]
[1723648343462,20.0,145.95,145.85,45.0]
[1723648343657,0.12549,145.94,145.85,45.0]
[1723648343858,67.64,145.97,145.85,45.0]
[1723648344084,0.12549,145.94,145.85,45.0]
[1723648344988,0.12549,145.96,145.85,45.0]
[1723648344989,0.25098,145.96,145.85,45.0]
[1723648345657,0.12549,145.96,145.85,45.0]
[1723648346272,0.25098,145.96,145.85,45.0]
[1723648346983,20.0,145.99,145.85,45.0]
[1723648347154,20.0,145.99,145.86,20.0]
[1723648347351,20.0,145.99,145.87,45.0]
[1723648347788,20.0,145.97,145.87,45.0]
[1723648347994,20.0,145.95,145.84,6.4171]
[1723648348284,0.12549,145.94,145.84,6.4171]
[1723648348484,0.25098,145.96,145.84,6.4171]
[1723648348650,0.12549,145.94,145.84,6.4171]
[1723648349059,67.64,145.97,145.84,6.4171]
[1723648349289,0.25098,145.96,145.85,45.0]
[1723648350488,0.12549,145.94,145.84,6.4171]
[1723648350688,0.25098,145.94,145.84,6.4171]
[1723648351177,0.12549,145.94,145.84,6.4171]
[1723648351958,20.0,145.95,145.84,6.4171]
[1723648352160,20.0,145.95,145.85,45.0]
[1723648353764,0.12549,145.96,145.85,45.0]
[1723648353992,20.0,145.99,145.85,45.0]
[1723648354212,20.0,145.99,145.86,67.64]
[1723648354213,40.0,145.99,145.86,67.64]
[1723648354513,40.0,145.99,145.87,45.0]
[1723648354728,20.0,145.99,145.87,45.0]
[1723648355101,20.0,145.97,145.87,45.0]
[1723648355417,20.0,145.93,145.84,6.4171]
[1723648355794,47.64,145.92,145.84,6.4171]
[1723648356010,0.12549,145.94,145.84,6.4171]
[1723648356319,0.25098,145.94,145.84,6.4171]
[1723648357120,0.12549,145.91,145.84,6.4171]
[1723648358333,20.25098,145.91,145.84,6.4171]
[1723648358493,0.12549,145.87,145.77,23.43384799]
[1723648358698,47.64,145.89,145.77,16.3251]
[1723648358916,20.25098,145.9,145.77,16.3251]
[1723648359114,20.12549,145.9,145.77,16.3251]
[1723648360030,0.12549,145.91,145.79,47.64]
[1723648360195,20.0,145.94,145.8,65.0]
[1723648360395,20.0,145.98,145.85,47.64]
[1723648360593,20.0,146.0,145.88,47.64]
[1723648361317,20.0,146.0,145.89,45.0]
[1723648361516,20.0,146.02,145.89,45.0]
[1723648361833,286.361523,146.06,145.89,45.0]
[1723648361834,20.0,146.04,145.91,47.64]
[1723648362017,334.001523,146.06,145.89,84.49]
[1723648362018,20.0,146.02,145.89,84.49]
[1723648362207,20.0,146.0,145.89,45.0]
[1723648362532,20.0,146.0,145.88,45.0]
[1723648363318,20.0,146.02,145.9,39.49]
[1723648363517,20.0,146.02,145.91,45.0]
[1723648363898,20.0,146.02,145.88,47.39]
[1723648364095,20.0,146.02,145.89,45.0]
[1723648364302,21.1373355,146.02,145.89,45.0]
[1723648365021,0.12549,145.98,145.87,6.0372]
[1723648365231,0.12549,145.96,145.87,6.0372]
[1723648365409,20.50196,145.96,145.87,6.0372]
[1723648365599,0.50196,145.96,145.87,6.0372]
[1723648365798,0.12549,145.96,145.87,6.0372]
[1723648366023,0.50196,145.96,145.87,6.0372]
[1723648366523,0.12549,145.94,145.87,6.0372]
[1723648366726,0.12549,145.94,145.81,47.39]
[1723648366727,0.12549,145.91,145.81,6.5727]
[1723648367206,20.37647,145.91,145.81,6.5727]
[1723648367398,0.12549,145.89,145.81,6.5727]
[1723648367807,0.25098,145.91,145.81,6.5727]
[1723648368029,0.12549,145.92,145.81,6.5727]
[1723648368727,0.12549,145.94,145.82,45.0]
[1723648369033,40.0,145.96,145.82,45.0]
[1723648369192,67.39,145.92,145.81,6.5727]
[1723648369544,20.0,145.95,145.81,6.5727]
[1723648369545,67.39,145.89,145.81,6.5727]
[1723648369900,20.0,145.88,145.81,6.5727]
[1723648370208,0.12549,145.93,145.81,6.5727]
[1723648370418,20.0,145.94,145.81,6.5727]
[1723648370419,40.0,145.94,145.81,6.5727]
[1723648370599,40.0,145.94,145.82,47.39]
[1723648371398,20.0,145.96,145.83,45.0]
[1723648371630,40.0,145.94,145.82,47.39]
[1723648371838,40.0,145.94,145.83,45.0]
[1723648372128,40.0,145.94,145.82,45.0]
[1723648372697,20.0,145.94,145.82,45.0]
[1723648372910,47.64098,145.95,145.82,92.39]
[1723648372911,0.12549,145.95,145.82,92.39]
[1723648373122,20.25098,145.95,145.82,92.39]
[1723648373515,20.25098,145.95,145.82,77.382723]
[1723648373929,0.25098,145.95,145.82,77.382723]
[1723648374114,0.12549,145.95,145.82,77.382723]
[1723648374426,0.25098,145.96,145.82,77.382723]
[1723648374631,20.25098,145.96,145.82,77.382723]
[1723648374935,0.25098,145.96,145.82,77.382723]
[1723648375113,0.12549,145.96,145.83,20.0]
[1723648375434,20.0,145.97,145.83,20.0]
[1723648375597,20.0,145.97,145.84,45.12549]
[1723648375998,40.0,146.0,145.85,47.39]
[1723648376201,20.0,146.0,145.86,65.0]
[1723648376425,68.5273355,146.02,145.88,47.39]
[1723648376730,88.5273355,146.02,145.88,47.39]
[1723648377438,40.0,146.0,145.86,65.0]
[1723648377735,48.5273355,146.02,145.86,65.0]
[1723648377736,40.0,145.98,145.86,45.0]
[1723648377936,87.39,145.98,145.8,0.12549]
[1723648378123,0.25098,145.97,145.82,20.0]
[1723648379036,20.0,145.96,145.82,20.0]
[1723648379248,47.64098,145.95,145.82,20.0]
[1723648379543,0.12549,145.91,145.81,6.5727]
[1723648380037,40.0,145.94,145.81,6.5727]
[1723648380240,20.0,145.94,145.81,6.5727]
[1723648380441,47.76647,145.95,145.81,6.5727]
[1723648380618,0.12549,145.95,145.81,6.5727]
[1723648380827,0.12549,145.95,145.82,20.12549]
[1723648381141,0.12549,145.93,145.82,20.12549]
[1723648381438,0.12549,145.93,145.76,6.3317]
[1723648381439,0.12549,145.87,145.76,6.3317]
[1723648381733,46.39,145.89,145.76,6.3317]
[1723648382227,20.0,145.9,145.77,47.39]
[1723648382817,0.12549,145.91,145.77,47.39]
[1723648383524,0.12549,145.93,145.77,47.39]
[1723648383733,0.12549,145.93,145.76,6.58268]
[1723648383734,20.0,145.94,145.8,47.39]
[1723648383942,20.3136216,145.96,145.81,65.0]
[1723648384138,40.3136216,145.96,145.83,47.39]
[1723648384342,20.0,145.94,145.82,0.12549]
[1723648384529,40.3136216,145.96,145.82,45.0]
[1723648385160,40.3136216,145.96,145.83,47.39]
[1723648385348,40.3136216,145.96,145.84,45.0]
[1723648386157,0.3136216,145.96,145.84,45.0]
[1723648386632,0.3136216,145.96,145.87,6.0904]
[1723648386954,0.3136216,145.96,145.88,45.0]
[1723648387955,0.3136216,145.96,145.87,6.0904]
[1723648389453,0.12549,145.95,145.87,6.0904]
[1723648389924,0.50196,145.95,145.87,6.0904]
[1723648390124,47.51549,145.93,145.83,15.0243]
[1723648390326,47.51549,145.93,145.82,6.2907]
[1723648390327,0.12549,145.91,145.82,6.2907]
[1723648390544,47.39,145.9,145.82,6.2907]
[1723648390752,0.12549,145.92,145.82,6.2907]
[1723648391132,401.7,145.95,145.82,6.2907]
[1723648391340,401.7,145.95,145.82,53.6807]
[1723648391741,20.12549,145.94,145.82,6.2907]
[1723648391941,0.12549,145.91,145.82,6.2907]
[1723648392139,0.12549,145.89,145.82,6.2907]
[1723648392674,0.12549,145.91,145.82,6.2907]
[1723648392842,47.39,145.93,145.82,6.2907]
[1723648393971,0.12549,145.94,145.82,6.2907]
[1723648394679,0.12549,145.92,145.82,6.2907]
[1723648395554,67.39,145.93,145.82,6.2907]
[1723648395880,0.12549,145.93,145.82,6.2907]
[1723648396066,0.3136216,145.94,145.82,45.8207]
[1723648396453,79.8436216,145.94,145.82,6.2907]
[1723648396758,39.53,145.9,145.82,6.2907]
[1723648397657,0.3136216,145.94,145.82,45.8207]
[1723648398189,0.3136216,145.94,145.83,45.0]
[1723648398848,0.3136216,145.94,145.84,39.53]
[1723648399059,0.3136216,145.94,145.85,45.0]
[1723648399295,0.3136216,145.94,145.86,39.53]
[1723648399789,0.3136216,145.94,145.87,45.0]
[1723648400174,0.3136216,145.94,145.86,39.53]
[1723648400381,0.3136216,145.94,145.84,39.53]
[1723648400567,0.3136216,145.94,145.85,65.0]
[1723648401356,0.3136216,145.94,145.86,39.53]
[1723648401556,0.3136216,145.94,145.87,45.0]
[1723648402189,0.3136216,145.94,145.89,16.2565]
[1723648402366,0.3136216,145.94,145.9,45.0]
[1723648402963,0.3136216,145.94,145.89,16.2565]
[1723648403163,0.3136216,145.94,145.82,22.5472]
[1723648403361,39.65549,145.93,145.82,22.5472]
[1723648403571,39.53,145.91,145.82,22.5472]
[1723648403772,0.12549,145.9,145.82,22.5472]
[1723648404565,39.53,145.91,145.82,22.5472]
[1723648405897,47.59549,145.92,145.82,22.5472]
[1723648406274,0.12549,145.9,145.82,22.5472]
[1723648406888,47.47,145.92,145.82,22.5472]
[1723648407603,0.12549,145.91,145.82,22.5472]
[1723648407792,0.50196,145.91,145.82,22.5472]
[1723648408094,0.12549,145.89,145.82,22.5472]
[1723648408294,0.12549,145.85,145.76,6.5851]
[1723648408684,0.50196,145.85,145.76,6.5851]
[1723648409494,0.12549,145.83,145.76,6.5851]
[1723648409976,47.59549,145.8,145.72,15.1777]
[1723648410164,47.59549,145.8,145.7,6.2054]
[1723648410165,67.59549,145.8,145.7,6.2054]
[1723648410801,20.25098,145.81,145.7,6.2054]
[1723648410802,47.59549,145.77,145.7,6.2054]
[1723648411378,0.12549,145.73,145.66,15.6499]
[1723648411694,47.47,145.74,145.66,15.6499]
[1723648412276,0.12549,145.73,145.66,15.6499]
[1723648412478,0.12549,145.73,145.65,6.2054]
[1723648413692,47.47,145.71,145.65,6.2054]
[1723648414100,0.12549,145.7,145.6,15.9311]
[1723648414605,47.47,145.71,145.6,15.9311]
[1723648414780,20.25098,145.73,145.6,15.9311]
[1723648415083,20.12549,145.73,145.6,15.9311]
[1723648415281,0.12549,145.73,145.6,15.9311]
[1723648415992,0.12549,145.71,145.6,15.9311]
[1723648416387,47.59549,145.69,145.6,15.9311]
[1723648418009,0.12549,145.68,145.59,6.5151]
[1723648418215,0.12549,145.66,145.59,6.5151]
[1723648418385,0.25098,145.66,145.59,6.5151]
[1723648418588,47.84647,145.66,145.59,6.5151]
[1723648420379,20.0,145.65,145.59,6.5151]
[1723648420579,0.12549,145.62,145.53,22.5382]
[1723648420784,0.37647,145.62,145.53,22.5382]
[1723648421290,0.37647,145.62,145.51,0.5100923]
[1723648421498,0.12549,145.59,145.51,0.5100923]
[1723648421890,0.37647,145.59,145.51,0.5100923]
[1723648422280,0.12549,145.59,145.51,0.5100923]
[1723648422486,0.50196,145.59,145.51,0.5100923]
[1723648422695,0.37647,145.59,145.51,0.5100923]
[1723648422896,0.12549,145.61,145.51,0.5100923]
[1723648423110,0.50196,145.61,145.51,0.5100923]
[1723648423483,0.25098,145.61,145.51,0.5100923]
[1723648423810,67.47,145.64,145.51,45.5100923]
[1723648424803,20.0,145.64,145.51,45.5100923]
[1723648424994,40.0,145.66,145.51,45.5100923]
[1723648425324,47.47,145.67,145.53,6.0325]
[1723648425488,47.47,145.64,145.53,6.0325]
[1723648425889,39.71,145.63,145.53,6.0325]
[1723648426089,59.71,145.63,145.53,6.0325]
[1723648426601,59.71,145.65,145.53,6.0325]
[1723648426918,0.12549,145.64,145.53,6.0325]
[1723648427408,0.25098,145.64,145.53,6.0325]
[1723648427612,0.12549,145.64,145.53,6.0325]
[1723648427916,39.71,145.68,145.54,84.83549]
[1723648429233,20.0,145.69,145.54,84.83549]
[1723648429234,39.71,145.7,145.56,39.71]
[1723648429540,39.71,145.72,145.58,46.2108]
[1723648429705,39.71,145.72,145.59,20.12549]
[1723648429901,39.71,145.74,145.6,55.1485]
[1723648430105,20.0,145.76,145.61,20.25098]
[1723648430333,40.0,145.76,145.62,45.0]
[1723648430707,20.0,145.76,145.62,45.0]
[1723648431030,39.71,145.77,145.63,39.71]
[1723648431334,20.0,145.8,145.67,6.5147]
[1723648431504,39.71,145.81,145.68,21.24793723]
[1723648431705,39.71,145.81,145.69,45.0]
[1723648431907,39.71,145.81,145.7,17.39867575]
[1723648432109,39.71,145.84,145.71,46.37227511]
[1723648432612,59.71,145.84,145.71,45.0]
[1723648433123,20.3136216,145.87,145.72,39.71]
[1723648433319,20.3136216,145.87,145.73,45.0]
[1723648433826,20.3136216,145.87,145.74,6.265]
[1723648434128,0.3136216,145.87,145.75,39.71]
[1723648434335,0.3136216,145.87,145.76,45.0]
[1723648434630,0.3136216,145.87,145.77,20.0]
[1723648435207,0.3136216,145.87,145.78,84.71]
[1723648435435,0.3136216,145.87,145.8,6.3411]
[1723648435650,0.3136216,145.87,145.81,20.0]
[1723648436128,0.3136216,145.87,145.82,45.0]
[1723648436332,67.44,145.96,145.82,45.0]
[1723648436534,87.44,145.96,145.83,20.0]
[1723648436735,67.44,145.96,145.84,45.0]
[1723648437730,67.44,145.96,145.83,20.0]
[1723648437933,20.0,145.94,145.81,20.0]
[1723648438118,0.12549,145.93,145.81,20.0]
[1723648438428,47.56549,145.93,145.81,20.0]
[1723648439626,47.44,145.9,145.8,6.3411]
[1723648440143,0.12549,145.91,145.8,6.3411]
[1723648440550,0.25098,145.91,145.8,6.3411]
[1723648441320,47.44,145.93,145.8,6.3411]
[1723648441745,47.44,145.93,145.81,45.0]
[1723648442519,76.28788819,145.96,145.81,45.0]
[1723648442829,20.0,145.95,145.82,20.25098]
[1723648443020,47.44,145.96,145.83,45.0]
[1723648443842,0.12549,145.95,145.83,45.0]
[1723648444231,87.44,145.99,145.84,20.0]
[1723648444438,87.44,145.99,145.85,45.0]
[1723648444649,87.44,145.99,145.84,20.0]
[1723648444837,67.44,145.96,145.84,20.0]
[1723648445144,67.44,145.93,145.8,6.3411]
[1723648445330,67.44,145.93,145.81,65.0]
[1723648445936,0.12549,145.92,145.81,65.0]
[1723648446315,0.12549,145.94,145.81,65.0]
[1723648446515,20.0,145.95,145.81,65.0]
[1723648446729,0.12549,145.95,145.81,65.0]
[1723648447028,20.12549,145.95,145.81,65.0]
[1723648447230,0.12549,145.94,145.81,65.0]
[1723648447545,20.0,145.92,145.8,13.51152122]
[1723648447772,0.12549,145.89,145.8,13.51152122]
[1723648447927,0.12549,145.89,145.8,6.3411]
[1723648448127,0.25098,145.89,145.8,6.3411]
[1723648448745,0.12549,145.87,145.8,6.3411]
[1723648449041,0.25098,145.87,145.8,6.3411]
[1723648449245,47.69098,145.87,145.8,6.3411]
[1723648449745,20.12549,145.88,145.8,6.3411]
[1723648449922,0.12549,145.89,145.8,6.3411]
[1723648450119,0.50196,145.89,145.8,6.3411]
[1723648450340,0.12549,145.87,145.8,6.3411]
[1723648450539,0.50196,145.87,145.8,6.3411]
[1723648450727,0.37647,145.89,145.8,6.3411]
[1723648450935,0.12549,145.88,145.8,6.3411]
[1723648451150,0.25098,145.88,145.8,6.3411]
[1723648451518,0.25098,145.89,145.8,6.3411]
[1723648451724,0.12549,145.89,145.8,6.3411]
[1723648451948,0.25098,145.89,145.8,6.3411]
[1723648452526,47.56549,145.83,145.75,13.58513398]
[1723648452817,20.0,145.82,145.75,6.4119]
[1723648453041,0.12549,145.81,145.75,6.4119]
[1723648453420,47.44,145.83,145.75,6.4119]
[1723648453618,20.12549,145.82,145.75,6.4119]
[1723648453853,0.25098,145.82,145.75,6.4119]
[1723648454056,0.12549,145.84,145.75,6.4119]
[1723648454260,0.12549,145.85,145.75,6.4119]
[1723648454446,20.0,145.84,145.75,6.4119]
[1723648454934,20.0,145.82,145.75,6.4119]
[1723648455138,47.44,145.83,145.75,6.4119]
[1723648455139,47.56549,145.83,145.75,6.4119]
[1723648455355,0.25098,145.82,145.75,6.4119]
[1723648455730,20.25098,145.82,145.75,6.4119]
[1723648456249,0.12549,145.81,145.75,6.4119]
[1723648456457,0.25098,145.82,145.75,6.4119]
[1723648456652,67.44,145.86,145.75,6.4119]
[1723648457943,0.12549,145.85,145.75,6.4119]
[1723648458140,39.59,145.86,145.75,6.4119]
[1723648458353,59.59,145.88,145.75,6.4119]
[1723648459067,20.0,145.8,145.75,6.4119]
[1723648459272,39.59,145.79,145.75,6.4119]
[1723648459474,20.0,145.77,145.7,6.2669]
[1723648459676,0.12549,145.77,145.7,6.2669]
[1723648460386,20.12549,145.77,145.7,6.2669]
[1723648460605,0.12549,145.74,145.7,6.2669]
[1723648460873,39.59,145.73,145.7,6.2669]
[1723648461183,0.25098,145.78,145.7,6.2669]
[1723648461372,0.12549,145.76,145.7,6.2669]
[1723648461676,0.12549,145.74,145.7,6.2669]
[1723648461852,47.59,145.73,145.7,6.2669]
[1723648462045,0.12549,145.74,145.7,6.2669]
[1723648462271,0.25098,145.74,145.7,6.2669]
[1723648462484,0.12549,145.75,145.7,6.2669]
[1723648462678,20.0,145.8,145.7,6.2669]
[1723648463186,20.0,145.79,145.7,6.2669]
[1723648463380,47.59,145.78,145.7,6.2669]
[1723648463686,20.0,145.77,145.7,6.2669]
[1723648463853,20.0,145.75,145.7,6.2669]
[1723648464386,0.25098,145.76,145.7,6.2669]
[1723648464879,0.12549,145.76,145.7,6.2669]
[1723648465074,0.12549,145.74,145.7,6.2669]
[1723648465382,0.25098,145.74,145.7,6.2669]
[1723648465678,0.12549,145.74,145.7,6.2669]
[1723648465885,0.12549,145.72,145.7,6.2669]